Cogmind - Beta 10.1 @@@ ROGUE MODE // 2020.09.23 @ 22:31:19 Player: muxecoid Result: Self-destructed Performance ------------- Evolutions (7) 3500 Regions Visited (30) 6000 Robots Destroyed (316) 1580 Value Destroyed (14019) 14019 Prototype IDs (48) 960 Alien Tech Used (1) 200 Bonus (4636) 4636 TOTAL SCORE: 30895 Bonus ------- High Alert Combat Kills 1426 Follower Combat Kills 1258 Network Hubs Disabled 400 Met Data Miner 300 Met Imprinter 300 Destroyed Z-Imprinter 1000 Scanned by Researcher 500 Friendly Fire -548 Cogmind --------- Core Integrity 519/1300 Matter 21/300 Energy 578/1100 System Corruption 12% Temperature Cool (0) Movement Flying (17) Location -3/Testing Parts ------- > --- POWER (1) -------- (None) > --- PROPULSION (3) --- Cooled Impulse Thruster Impulse Thruster Array > --- UTILITY (16) ----- Medium Storage Unit Large Storage Unit Assembled Biocell Array Assembled Suspension Frame Assembled Suspension Frame Zionite Metafield Generator Advanced Signal Interpreter Advanced Terrain Scan Processor Experimental Melee Analysis Suite Experimental Utility Shielding Advanced Remote Shield Improved Hacking Suite Improved Hacking Suite Improved Hacking Suite Improved Hacking Suite Improved System Shield > --- WEAPON (2) ------- Force Lance > --- INVENTORY (14) --- Cooled Field Propulsion Drive Impulse Thruster Array Impulse Thruster Array Experimental Energy Well (1000) Experimental Sensor Array Advanced Reaction Control System Advanced Phase Shifter Lance Lance Peak State ------------ > --- POWER ------------ Micro Fission Core > --- PROPULSION ------- Cooled Field Propulsion Drive Impulse Thruster Array > --- UTILITY ---------- 2N-1CE's Frost Array Medium Storage Unit Large Storage Unit Assembled Biocell Array Assembled Suspension Frame Assembled Suspension Frame Advanced Signal Interpreter Assembled Combat Suite Experimental Melee Analysis Suite Advanced Reaction Control System Experimental Utility Shielding Improved Hacking Suite Improved Hacking Suite Improved Hacking Suite Improved Hacking Suite Improved System Shield > --- WEAPON ----------- Lance Force Lance > --- INVENTORY -------- Zionite Light DM Reactor Q-thruster Impulse Thruster Array Impulse Thruster Array Experimental Energy Well Zionite Metafield Generator Precision Matter Filter Advanced Phase Shifter Experimental Utility Shielding Mini Smartbomb Launcher Lance [Rating: 151] Favorites ----------- Power Improved Deuterium Engine Engine Improved Deuterium Engine Power Core Micro Fission Core Reactor Antimatter Reactor Propulsion Armored Huge Wheel Treads Medium Treads Leg Improved Titanium Leg Wheel Armored Huge Wheel Flight Unit Impulse Thruster Array Utility Large Storage Unit Device Makeshift Sensor Array Storage Large Storage Unit Processor Advanced Targeting Computer Hackware System Shield Protection Damper Plating Weapon Lance Energy Gun Force Rifle Energy Cannon Phase Cannon Ballistic Gun KE Penetrator Launcher Precision Grenade Launcher Special Weapon Remote Datajack Slashing Weapon Greatsword Piercing Weapon Lance Build | -11 -10 -10 -10 -9 -8 -7 -7 -7 -7 -7 -6 -6 -6 -6 -6 -5 -5 -5 -5 -5 -5 -4 -4 -4 -4 -4 -4 -4 -3 -3 ------- Run | Scr Mat Min Exi Min Mat Fac Low Low Zio Dee Pro Fac Low Low Dat Pro Fac Was Fac Upp Upp Fac Was Fac Ext Cet Arc Hub Res Tes Slots Evolved 14 | . . . . . 4 2 . . . . . 2 . . . . 2 . . . . 2 . . . . . . 2 . Power . | . . . . . . . . . . . . . . . . . . . . . . . . . . . . . . . Propulsion . | . . . . . . . . . . . . . . . . . . . . . . . . . . . . . . . Utility 14 | . . . . . 4 2 . . . . . 2 . . . . 2 . . . . 2 . . . . . . 2 . Weapon . | . . . . . . . . . . . . . . . . . . . . . . . . . . . . . . . Parts Attached 398 | 6 6 4 1 2 11 35 11 7 3 34 . 20 8 26 . 4 7 8 30 12 9 11 7 10 24 14 9 25 30 24 Power 21 | 1 1 1 . . . 4 . . . . . . 2 1 . . 1 . 5 . . . 1 . . 1 . 2 . 1 Engine 6 | 1 1 1 . . . 3 . . . . . . . . . . . . . . . . . . . . . . . . Core 7 | . . . . . . 1 . . . . . . 1 1 . . 1 . 2 . . . . . . . . 1 . . Reactor 8 | . . . . . . . . . . . . . 1 . . . . . 3 . . . 1 . . 1 . 1 . 1 Propulsion 49 | 2 . 1 . . 2 5 . 1 . 1 . 2 . 3 . . 3 . 3 2 3 5 1 1 3 2 . 1 5 3 Treads 18 | . . 1 . . 2 . . 1 . . . . . 1 . . . . 1 2 2 . 1 1 3 2 . 1 . . Leg 7 | . . . . . . 1 . . . . . . . 1 . . 2 . 1 . 1 1 . . . . . . . . Wheel 15 | 2 . . . . . 4 . . . 1 . 2 . 1 . . 1 . 1 . . 3 . . . . . . . . Hover . | . . . . . . . . . . . . . . . . . . . . . . . . . . . . . . . Flight 9 | . . . . . . . . . . . . . . . . . . . . . . 1 . . . . . . 5 3 Utility 159 | 1 2 . 1 . 3 9 5 2 3 18 . 7 2 3 . . 2 3 5 4 3 5 2 8 15 7 6 12 17 14 Device 69 | . . . . . . 6 3 2 . 3 . 1 1 . . . 1 2 1 1 1 4 . 6 8 2 2 9 6 10 Storage 29 | 1 2 . 1 . 1 1 . . . 4 . . . 1 . . 1 1 . . . . . 2 3 3 2 3 2 1 Processor 16 | . . . . . . 1 1 . 3 3 . . . 2 . . . . 1 1 . 1 . . 1 . . . 1 1 Hackware 11 | . . . . . . . . . . . . 2 . . . . . . 2 . . . . . 1 . . . 6 . Protection 34 | . . . . . 2 1 1 . . 8 . 4 1 . . . . . 1 2 2 . 2 . 2 2 2 . 2 2 Artifact . | . . . . . . . . . . . . . . . . . . . . . . . . . . . . . . . Weapon 169 | 2 3 2 . 2 6 17 6 4 . 15 . 11 4 19 . 4 1 5 17 6 3 1 3 1 6 4 3 10 8 6 Energy Gun 40 | 1 1 . . . 1 4 2 1 . 5 . 6 2 2 . 2 . 2 4 1 1 . . . 1 2 1 1 . . Energy Cannon 28 | . . 1 . . 1 2 1 2 . 1 . 1 . 5 . 2 1 . 4 1 1 . 2 . 1 . . . . 2 Ballistic Gun 40 | 1 . 1 . 1 2 7 . . . 5 . 1 . 4 . . . 1 3 2 1 1 1 1 2 . 1 4 1 . Ballistic Cannon . | . . . . . . . . . . . . . . . . . . . . . . . . . . . . . . . Launcher 40 | . 2 . . 1 2 3 1 . . 4 . 3 2 8 . . . 2 3 . . . . . 2 2 . 1 2 2 Special Weapon 2 | . . . . . . 1 . . . . . . . . . . . . 1 . . . . . . . . . . . Impact Weapon . | . . . . . . . . . . . . . . . . . . . . . . . . . . . . . . . Slashing Weapon 3 | . . . . . . . 2 1 . . . . . . . . . . . . . . . . . . . . . . Piercing Weapon 16 | . . . . . . . . . . . . . . . . . . . 2 2 . . . . . . 1 4 5 2 Special Melee Weapon . | . . . . . . . . . . . . . . . . . . . . . . . . . . . . . . . Unidentified Prototypes 24 | . . . . . . 3 . 1 3 7 . . 1 . . . . . . . . . . 1 . 1 1 . . 6 Parts Lost 84 | . 6 . . . 4 13 1 1 . 2 . 5 3 10 . . 2 . 10 2 5 2 . 2 3 . . 2 7 4 Power 11 | . 2 . . . . 3 . . . . . . 1 . . . . . 3 . . . . . . . . 1 . 1 Propulsion 18 | . 1 . . . 2 3 . . . . . 1 . 3 . . 1 . 1 1 2 1 . . . . . . 2 . Utility 27 | . . . . . 1 2 . . . 2 . 3 . 4 . . . . 1 . 3 1 . 1 2 . . 1 4 2 Weapon 28 | . 3 . . . 1 5 1 1 . . . 1 2 3 . . 1 . 5 1 . . . 1 1 . . . 1 1 Highest Loss Streak 6 | . 5 . . . 2 4 1 1 . 2 . 2 2 4 . . 2 . 6 1 5 1 . 2 1 . . 2 2 2 Average Slot Usage (%) 88 | . 95 100 97 100 78 85 86 84 84 83 85 88 89 85 75 83 81 88 89 94 88 91 96 84 86 87 89 84 92 94 Engine 3 | . 13 14 14 14 9 4 7 7 7 7 7 6 2 . . . . . . . . . . . . . . . . . Core 1 | . . . . . . 2 . . . . . . . 5 6 6 5 2 1 5 5 5 4 . . . . . 4 3 Reactor 1 | . . . . . . . . . . . . . 2 . . . . . 3 . . . . 5 5 5 5 4 . . Treads 5 | . . 14 14 14 16 4 . 1 7 7 7 3 . 1 . . . . . 6 5 4 . 7 10 10 10 10 . . Wheel 5 | . 27 14 14 14 1 5 7 7 7 7 7 8 12 7 6 6 2 5 6 4 . 1 13 2 . . . . . . Device 9 | . . . . . . 10 15 14 11 3 . 4 6 . . . 4 15 3 2 4 15 17 14 17 10 16 17 21 20 Storage 24 | . 26 28 26 28 27 28 30 29 28 22 35 25 25 26 31 31 26 25 25 22 22 20 20 24 22 22 27 24 14 13 Processor 10 | . . . . . . 5 14 14 16 9 7 6 6 13 18 18 16 16 16 16 16 16 18 10 10 10 10 7 4 9 Hackware 5 | . . . . . . . . . . . . 10 12 10 6 6 5 5 12 16 11 10 10 5 6 5 2 . 24 22 Protection 5 | . . . . . 6 4 . . . 13 7 9 12 6 . . . . 2 8 5 4 . 5 5 13 8 10 2 4 Energy Gun 2 | . 11 . . . . 1 4 . . 5 7 6 7 . . 4 1 6 5 . 4 5 5 3 2 5 3 . . . Energy Cannon 2 | . . 14 14 14 6 2 . 1 . 3 . 1 . 3 . 4 5 . 2 . 4 1 1 5 2 . . . . . Ballistic Gun 3 | . 12 14 14 13 10 8 . . . 2 . . . 3 . . . . 1 1 . 3 3 1 4 . 2 6 1 . Piercing Weapon 1 | . . . . . . . . . . . . . . . . . . . . 8 . . . . . . 4 3 6 7 Naked Turns . | . . . . . . . . . . . . . . . . . . . . . . . . . . . . . . . Heaviest Build 164 | 10 48 49 57 60 76 104 106 103 98 110 110 111 109 116 90 104 119 126 123 113 110 117 160 164 153 160 160 148 114 57 Greatest Support 130 | 20 20 20 20 10 40 40 28 28 28 28 28 38 38 38 28 28 60 28 40 93 98 70 70 98 105 110 130 130 125 58 Greatest Overweight (x) 8 | . 4 2 5 5 7 5 3 3 3 3 3 3 2 3 3 3 4 4 4 2 1 8 3 2 1 1 1 1 3 . Average Overweight (x) 2 | . 1 2 3 5 2 2 3 3 3 2 3 2 2 2 3 3 2 3 3 1 1 1 2 1 1 1 . . . . Largest Inventory Capacity 30 | 6 16 16 18 18 24 30 30 30 30 30 30 30 30 30 30 30 30 30 30 30 30 30 30 30 28 26 26 26 22 14 Average Capacity 25 | 5 14 16 15 18 23 28 30 30 30 19 30 30 30 30 30 30 29 27 30 30 30 30 30 28 26 26 25 23 14 14 Most Carried 30 | 4 10 8 6 8 10 30 30 30 30 30 30 30 30 30 24 24 26 24 30 30 30 30 30 30 26 26 26 26 21 14 Average Carried 22 | 2 8 5 5 7 7 22 27 28 29 17 30 28 27 26 24 22 22 20 24 29 28 28 29 27 25 25 24 23 13 13 Final Capacity 30 | 6 16 16 18 18 24 30 30 30 30 30 30 30 30 30 30 30 30 30 30 30 30 30 30 24 26 26 26 22 14 14 Final Carried 30 | 4 9 6 5 8 10 28 28 30 30 30 30 27 30 24 24 22 24 21 30 30 29 29 30 23 26 26 26 22 13 11 Class Distribution -------------------- 39% | Hauler-Mutant 17% | Scavenger-Mutant 10% | Hauler-Assassin 8% | Mutant 7% | Hauler-Skirmisher 7% | Hacker-Mutant 5% | Wizard-Mutant 3% | Scavenger-Skirmisher Dominant Class ---------------- Mutant | -10/Materials Mutant | -10/Mines Mutant | -10/Exiles Mutant | -9/Mines Hauler-Mutant | -8/Materials Hauler-Mutant | -7/Factory Hauler-Assassin | -7/Lower Caves Hauler-Assassin | -7/Lower Caves Hauler-Assassin | -7/Zion Hauler-Mutant | -7/Deep Caves Hauler-Mutant | -6/Proximity Caves Hauler-Mutant | -6/Factory Hauler-Mutant | -6/Lower Caves Hauler-Mutant | -6/Lower Caves Hauler-Mutant | -6/Data Miner Hauler-Mutant | -5/Proximity Caves Hauler-Mutant | -5/Factory Hauler-Mutant | -5/Waste Hacker-Mutant | -5/Factory Hacker-Mutant | -5/Upper Caves Hauler-Mutant | -5/Upper Caves Hauler-Mutant | -4/Factory Hauler-Skirmisher | -4/Waste Hauler-Mutant | -4/Factory Scavenger-Skirmisher | -4/Extension Scavenger-Mutant | -4/Cetus Scavenger-Mutant | -4/Archives Scavenger-Mutant | -4/Hub_04(d) Wizard-Mutant | -3/Research Wizard-Mutant | -3/Testing Resources | -11 -10 -10 -10 -9 -8 -7 -7 -7 -7 -7 -6 -6 -6 -6 -6 -5 -5 -5 -5 -5 -5 -4 -4 -4 -4 -4 -4 -4 -3 -3 ----------- Run | Scr Mat Min Exi Min Mat Fac Low Low Zio Dee Pro Fac Low Low Dat Pro Fac Was Fac Upp Upp Fac Was Fac Ext Cet Arc Hub Res Tes Matter Collected 7808 | 218 108 116 . 52 186 806 98 114 31 542 21 261 246 546 . 60 45 225 399 370 206 164 450 413 666 308 106 440 443 168 Remotely . | . . . . . . . . . . . . . . . . . . . . . . . . . . . . . . . Salvage Created 15584 | . 178 . . 66 421 1222 121 75 . 501 . 1142 448 929 . 65 157 188 746 266 263 439 1987 717 1408 1125 634 1351 759 376 Parts 713 | . 13 . . 6 37 67 7 3 . 36 . 61 16 35 . 2 6 . 45 17 12 19 53 38 50 34 31 65 44 16 Haulers Intercepted 4 | . . . . . . 1 . . . . . . . . . . . . . . . . . 1 . . . 2 . . Recyclers Shooed 14 | . . . . . . 4 . . . . . 3 . . . . . . 1 . . 2 . . 3 . . . 1 . Parts Field Recycled . | . . . . . . . . . . . . . . . . . . . . . . . . . . . . . . . Retrieved Matter . | . . . . . . . . . . . . . . . . . . . . . . . . . . . . . . . Parts Self-Destructed 68 | . . . . . . . 4 . . . . . 2 36 . 3 . . . 13 10 . . . . . . . . . Prevented 25 | . . . . . . . 1 3 . . . . 14 3 . 2 . . . 2 . . . . . . . . . . Kills | -11 -10 -10 -10 -9 -8 -7 -7 -7 -7 -7 -6 -6 -6 -6 -6 -5 -5 -5 -5 -5 -5 -4 -4 -4 -4 -4 -4 -4 -3 -3 ------- Run | Scr Mat Min Exi Min Mat Fac Low Low Zio Dee Pro Fac Low Low Dat Pro Fac Was Fac Upp Upp Fac Was Fac Ext Cet Arc Hub Res Tes Combat Hostiles Destroyed 250 | . 12 . . 3 14 21 5 1 . 8 . 25 7 26 . 1 2 1 11 4 4 5 6 7 22 17 4 15 18 11 Melee 21 | . . . . . . . . . . . . . . . . . . . 2 3 2 . . . . . . 6 4 4 Guns 75 | . 3 . . . 5 11 1 . . 2 . 10 1 3 . . . . 5 1 2 4 6 3 9 1 . 7 1 . Cannons 25 | . . . . . 3 3 1 . . . . 6 . 2 . 1 1 . 1 . . . . 4 3 . . . . . AOE 106 | . 9 . . 3 6 6 3 . . 4 . 9 4 19 . . . 1 2 . . . . . 9 9 . 2 13 7 Classes Destroyed 21 | . 3 . . 1 2 5 . . . 4 . 2 1 . . . . 1 . . . 1 . . . . 1 . . . Worker 13 | . . . . . . 2 . . . . . 3 . . . . . . 2 . . . . . . . . 2 1 3 Builder 17 | . . . . . 1 3 . . . . . 2 . . . . . . 5 . . . . . 2 . . 2 2 . Tunneler 4 | . 2 . . . . . . . . . . 1 . . . . . . . . . . . . . . . 1 . . Hauler 4 | . . . . . . 1 . . . . . . . . . . . . . . . . . 1 . . . 2 . . Recycler 10 | . . . . . . 3 . . . . . 1 . . . . . . . . . 1 . 1 2 . . . 2 . Mechanic 2 | . . . . . . . . . . . . 1 . . . . . . . . . . . . . . . . . 1 Operator 7 | . . . . . . . . . . . . . . . . . . . . . . . . . . . 7 . . . Watcher 6 | . . . . . . . . . . . . . . . . . . . . . . 1 . 1 1 1 . 1 1 . Swarmer 68 | . 6 . . . 7 6 4 . . . . 8 . 6 . . . . . . . 3 . . 5 5 . . 10 8 Grunt 84 | . 6 . . 2 5 6 . . . . . 12 4 11 . 1 1 . 2 1 4 . . 2 11 7 . 6 . 3 Brawler 8 | . . . . . . . . . . . . 1 . 5 . . 1 . . . . . . . . 1 . . . . Duelist 3 | . . . . . . . . . . . . . 1 . . . . . . . . . . . 2 . . . . . Protector 3 | . . . . 1 . . . . . . . . . 1 . . . . . . . . . . . . . 1 . . Sentry 27 | . . . . . 2 5 1 1 . . . 1 . 2 . . . . 2 1 . 1 . . 2 . 4 4 1 . Hunter 14 | . . . . . . 2 . . . . . 2 2 . . . . . 5 1 . . . . 2 . . . . . Programmer 24 | . . . . . . 2 . . . . . 1 . 1 . . . . 2 1 . 1 . 5 . . . 4 7 . Compactor 7 | . . . . . . . . . . . . . . . . . . 1 . . . . 6 . . . . . . . Cetus Guard 4 | . . . . . . . . . . . . . . . . . . . . . . . . . . 4 . . . . Z-Light 4 | . . . . . . . . . . 4 . . . . . . . . . . . . . . . . . . . . Assembled 2 | . . . . . . . . . . 2 . . . . . . . . . . . . . . . . . . . . Golem 1 | . . . . . . . . . . 1 . . . . . . . . . . . . . . . . . . . . Surgeon 1 | . . . . . . . . . . . . . . . . . . . 1 . . . . . . . . . . . Wasp 1 | . . . . . . . . . . . . . . . . . . 1 . . . . . . . . . . . . Fireman 1 | . . . . . . . . . . 1 . . . . . . . . . . . . . . . . . . . . Best Kill Streak 15 | . 6 . . 3 6 8 4 1 . 3 . 7 4 6 . 1 2 1 12 1 4 5 2 2 7 5 2 10 15 6 Combat Bots Only 8 | . 5 . . 3 5 4 4 1 . 3 . 5 4 6 . 1 2 1 5 1 4 4 2 2 7 5 2 3 8 5 Max Kills in Single Turn 8 | . 3 . . 2 4 5 3 1 . 2 . 5 2 3 . 1 1 1 4 1 1 1 1 1 4 3 1 8 3 3 Gunslinging . | . . . . . . . . . . . . . . . . . . . . . . . . . . . . . . . Exploded 4 | . 3 . . 2 4 3 3 . . 2 . 2 2 3 . . . 1 1 . . . . . 4 3 . 2 3 3 Melee 1 | . . . . . . . . . . . . . . . . . . . 1 1 1 . . . . . . 1 1 1 Uniques/NPCs Destroyed 1 | . . . . . . . . . . 1 . . . . . . . . . . . . . . . . . . . . Z-Imprinter (-7/Deep Caves) Combat | -11 -10 -10 -10 -9 -8 -7 -7 -7 -7 -7 -6 -6 -6 -6 -6 -5 -5 -5 -5 -5 -5 -4 -4 -4 -4 -4 -4 -4 -3 -3 -------- Run | Scr Mat Min Exi Min Mat Fac Low Low Zio Dee Pro Fac Low Low Dat Pro Fac Was Fac Upp Upp Fac Was Fac Ext Cet Arc Hub Res Tes Damage Taken 20232 | . 523 . . 65 979 2292 226 101 . 1466 . 1218 409 1119 . 116 302 . 1970 688 1089 490 . 295 1694 798 325 1534 1511 1022 Core 2761 | . 78 . . 23 177 310 7 44 . 227 . 113 20 139 . 18 38 . 263 90 79 92 . 17 145 21 29 50 497 284 Absorbed by Shields . | . . . . . . . . . . . . . . . . . . . . . . . . . . . . . . . Reduced by Siege Mode 71 | . . . . . . . . . . . . . . . . . . . . . . 34 . 12 5 12 8 . . . Core Remaining (%) 61 | 100 . . . 59 67 . . . . . 16 . . . . 65 . . . . 53 . . . . . . 69 . . Volleys Fired 846 | . 30 1 . 2 52 88 10 2 . 66 20 56 19 51 . 16 9 7 54 8 14 20 85 50 82 13 18 33 21 19 Largest 2 | . 2 2 . 1 2 2 2 2 . 2 1 2 2 2 . 2 2 2 2 2 2 2 2 2 2 2 2 2 1 1 Hottest 170 | . 70 80 . 33 83 140 113 119 . 113 73 148 142 138 . 138 138 145 170 90 170 113 113 170 123 125 125 80 80 113 Shots Fired 1354 | . 51 2 . 2 101 167 17 4 . 100 20 102 22 65 . 20 11 14 83 12 20 36 162 72 133 17 32 51 20 18 Gun 959 | . 42 1 . . 66 139 11 . . 87 20 67 15 19 . 11 . 6 50 10 6 32 154 37 88 5 32 50 11 . Cannon 274 | . . 1 . . 32 21 3 4 . 4 . 24 . 23 . 9 11 . 28 2 14 4 8 35 37 . . . . 14 Launcher 119 | . 9 . . 2 3 5 3 . . 9 . 11 7 23 . . . 8 5 . . . . . 8 12 . 1 9 4 Special 2 | . . . . . . 2 . . . . . . . . . . . . . . . . . . . . . . . . Kinetic 505 | . 21 1 . . 55 109 . . . 41 . 15 . 6 . . . 2 16 7 2 16 77 13 59 . 4 50 11 . Thermal 536 | . 21 1 . . 43 43 . . . 42 20 62 5 9 . 11 . 3 41 2 18 20 85 59 37 . . . . 14 Explosive 92 | . 9 . . 2 3 5 3 . . 1 . 11 . 23 . . . 8 5 . . . . . 8 . . 1 9 4 Electromagnetic 219 | . . . . . . 8 14 4 . 16 . 14 17 27 . 9 11 1 21 3 . . . . 29 17 28 . . . Robot Hit Streak 31 | . 4 . . 5 11 23 27 5 . 10 . 23 21 8 . 10 10 4 12 8 5 17 24 10 31 7 15 7 2 4 Robot Miss Streak 6 | . 3 . . . 2 4 1 . . 4 . 5 3 2 . 1 1 3 3 1 1 1 6 3 3 2 3 1 2 . Penetration Max 1 | . . . . . . . . . . . . . . . . . . . 1 . . 1 . 1 1 . . . . . Secondary Targets 5 | . . . . . . 2 . . . . . . . . . . . . 1 . 1 1 . . . . . . . . Max Gunslinging Chain 1 | . . . . . . 1 . . . . . . . . . . . . 1 . 1 1 . . . . . . . . Shots Hit Robots 959 | . 26 . . 2 74 125 11 4 . 20 . 79 16 34 . 5 10 9 47 14 13 28 144 41 92 13 45 60 26 21 Core Hits 687 | . 24 . . 9 27 77 8 1 . 21 . 77 15 53 . 3 5 6 42 8 8 9 53 22 57 23 21 47 45 26 Critical Hits 48 | . 1 . . . . 2 . . . . . 1 . . . . . . 4 . . 3 14 3 6 . 1 8 2 3 Critical Kills 14 | . 1 . . . . 1 . . . . . 1 . . . . . . 3 . . 1 . 2 1 . 1 3 . . Critical Parts Destroyed 21 | . . . . . . 1 . . . . . . . . . . . . 1 . . 2 4 1 5 . . 3 2 2 Melee Attacks 193 | . . . . . . . 3 5 5 . . . . . . . . . 11 15 13 . . . . . 17 37 47 40 Impact . | . . . . . . . . . . . . . . . . . . . . . . . . . . . . . . . Slashing 13 | . . . . . . . 3 5 5 . . . . . . . . . . . . . . . . . . . . . Piercing 180 | . . . . . . . . . . . . . . . . . . . 11 15 13 . . . . . 17 37 47 40 Sneak Attacks 16 | . . . . . . . . . . . . . . . . . . . . . . . . . . . 13 . 3 . Combat Hostiles 1 | . . . . . . . . . . . . . . . . . . . . . . . . . . . . . 1 . Follow-up Attacks 15 | . . . . . . . . . . . . . . . . . . . 2 1 2 . . . . . . 5 4 1 Damage Inflicted 42291 | . 992 . . 366 1457 2528 487 84 . 1312 . 4067 863 2839 . 133 291 763 2451 426 421 728 4357 1276 4137 1796 2004 2917 3513 2083 Guns 15113 | . 206 . . . 588 1698 98 . . 266 . 1313 238 168 . . . 134 700 153 70 728 4206 794 2044 87 596 877 149 . Cannons 3821 | . . . . . 384 296 62 84 . 72 . 406 . 481 . 133 291 . 375 . . . 151 482 604 . . . . . Explosions 18550 | . 786 . . 366 485 534 327 . . 974 . 2328 625 2190 . . . 629 1246 . . . . . 1489 1709 100 1110 2344 1308 Melee 4787 | . . . . . . . . . . . . . . . . . . . 130 273 351 . . . . . 1308 930 1020 775 Ramming 20 | . . . . . . . . . . . . 20 . . . . . . . . . . . . . . . . . . Kinetic 8321 | . 80 . . . 399 1165 . . . 202 . 210 . 75 . . . 61 243 91 21 387 2556 248 1485 . 72 877 149 . Thermal 9270 | . 126 . . . 573 712 . . . 359 . 1986 128 . . . . 71 590 . 49 341 1801 1028 1002 404 100 . . . Explosive 12850 | . 786 . . 366 485 534 327 . . 138 . 1540 . 2190 . . . 629 1112 . . . . . 1091 . . . 2344 1308 Electromagnetic 7043 | . . . . . . 117 160 84 . 613 . 311 735 574 . 133 291 2 376 62 . . . . 559 1392 524 1110 . . Impact . | . . . . . . . . . . . . . . . . . . . . . . . . . . . . . . . Slashing . | . . . . . . . . . . . . . . . . . . . . . . . . . . . . . . . Piercing 4787 | . . . . . . . . . . . . . . . . . . . 130 273 351 . . . . . 1308 930 1020 775 Highest Corruption 20 | . . . . . . 3 1 . . . . 1 1 3 3 3 . 14 18 20 20 . . 1 1 1 1 . 10 12 Average Corruption 7 | . . . . . . 1 1 . . . . 1 1 1 3 3 . 10 14 19 20 . . 1 1 1 1 . 5 10 Corruption Purged 5 | . . . . . . 3 1 . . . . . . . . . . . . . . . . . . . 1 . . . Effects 308 | . . . . . . 13 . . . . . 5 2 8 . 6 . 6 86 68 59 . . . 7 3 1 . 12 32 Message Errors 47 | . . . . . . 1 . . . . . 2 2 4 . 1 . 1 7 7 9 . . . 3 2 . . 1 7 Matter Fused 66 | . . . . . . 3 . . . . . . . . . 4 . 1 18 21 13 . . . . . . . 4 2 Heat Flow Errors 17 | . . . . . . 1 . . . . . . . . . . . 2 2 3 4 . . . . . . . 1 4 Energy Discharges 26 | . . . . . . 3 . . . . . 1 . 1 . 1 . . 6 5 3 . . . . . 1 . 2 3 Parts Rejected 5 | . . . . . . . . . . . . . . . . . . 1 1 1 1 . . . . . . . . 1 Data Loss (minor) 25 | . . . . . . 1 . . . . . 1 . 2 . . . . 7 5 3 . . . 2 . . . 1 3 Data Loss (major) 14 | . . . . . . . . . . . . . . . . . . . 5 1 6 . . . . . . . . 2 Misfires 5 | . . . . . . . . . . . . . . . . . . 1 1 1 2 . . . . . . . . . Alerts 5 | . . . . . . . . . . . . . . . . . . . 2 2 1 . . . . . . . . . Misdirections 40 | . . . . . . . . . . . . . . . . . . . 10 14 11 . . . . . . . 2 3 Targeting Errors 52 | . . . . . . 2 . . . . . 1 . 1 . . . . 25 8 6 . . . 2 1 . . . 6 Weapon Failures 6 | . . . . . . 2 . . . . . . . . . . . . 2 . . . . . . . . . 1 1 Overload Shots . | . . . . . . . . . . . . . . . . . . . . . . . . . . . . . . . Overflow Damage 1462 | . 130 . . 4 10 . 27 . . 5 . 223 18 118 . 14 . . 68 . . . . 11 56 . 404 64 181 129 Projectiles 110 | . . . . . . . . . . . . 23 . 41 . 14 . . 1 . . . . 11 20 . . . . . Explosions 802 | . 130 . . 4 10 . 27 . . 5 . 200 18 77 . . . . 67 . . . . . 36 . . 40 120 68 Melee 550 | . . . . . . . . . . . . . . . . . . . . . . . . . . . 404 24 61 61 Knockbacks . | . . . . . . . . . . . . . . . . . . . . . . . . . . . . . . . Impact . | . . . . . . . . . . . . . . . . . . . . . . . . . . . . . . . Kinetic . | . . . . . . . . . . . . . . . . . . . . . . . . . . . . . . . Secondary . | . . . . . . . . . . . . . . . . . . . . . . . . . . . . . . . Self-Inflicted Damage 738 | . 131 . . 20 42 39 28 . . 87 . 30 73 118 . . . . 88 . . . . . . 10 . 36 . 36 Shots 26 | . 4 . . 1 1 1 1 . . 1 . 1 4 4 . . . . 3 . . . . . . 1 . 3 . 1 Rammed 2 | . . . . . . . . . . . . 2 . . . . . . . . . . . . . . . . . . Targets Rammed 2 | . . . . . . . . . . . . 2 . . . . . . . . . . . . . . . . . . Kicked . | . . . . . . . . . . . . . . . . . . . . . . . . . . . . . . . Crushed . | . . . . . . . . . . . . . . . . . . . . . . . . . . . . . . . Highest Temperature 450 | . 206 40 . 4 306 146 185 90 342 110 108 126 185 214 . 171 257 235 450 138 237 121 144 366 330 16 . 237 147 374 Average Temperature 75 | . 78 20 . 3 116 41 71 48 180 30 38 23 71 60 . 46 151 66 111 45 61 40 35 113 91 8 . 59 44 127 Received Heat Transfer 3828 | . 144 . . 24 441 342 18 48 . 336 . 246 72 228 . 60 144 . 141 72 456 54 . 45 288 114 27 393 54 81 Effects 12 | . . . . . 2 . . . . . . . . . . . . . 4 . . . . 3 3 . . . . . Energy Bleed 3 | . . . . . . . . . . . . . . . . . . . . . . . . 1 2 . . . . . Interference 9 | . . . . . 2 . . . . . . . . . . . . . 4 . . . . 2 1 . . . . . Siege Activations 18 | . . . . . . . . . . . . . . . . . . . . . . 4 . 1 3 3 4 3 . . Total Turns 218 | . . . . . . . . . . . . . . . . . . . . . . 34 . 9 70 40 33 32 . . Longest Duration 35 | . . . . . . . . . . . . . . . . . . . . . . 17 . 9 35 28 10 19 . . Robots Corrupted 23 | . . . . . . 1 . 1 . 2 . . 2 2 . . 1 . 1 . . . . . 1 7 4 1 . . Combat Hostiles 22 | . . . . . . 1 . 1 . 2 . . 2 2 . . 1 . 1 . . . . . 1 7 4 . . . Parts Fried 47 | . . . . . . . 2 3 . 8 . . 4 . . . 2 . 3 . . . . . 5 15 4 1 . . Impact Corruptions . | . . . . . . . . . . . . . . . . . . . . . . . . . . . . . . . Robots Melted 1 | . . . . . . . . . . . . . . . . . . . . . . 1 . . . . . . . . Combat Hostiles 1 | . . . . . . . . . . . . . . . . . . . . . . 1 . . . . . . . . Parts Melted 16 | . . . . . 1 3 . . . 1 . 1 . . . . . . . . . 1 . 5 4 . . . . . Heat Transferred 12379 | . 370 . . . 1221 1381 . . . 300 . 2141 185 . . . . 111 692 . 74 518 2738 1258 940 350 100 . . . Parts Sabotaged . | . . . . . . . . . . . . . . . . . . . . . . . . . . . . . . . Parts Stolen . | . . . . . . . . . . . . . . . . . . . . . . . . . . . . . . . Parts Stripped . | . . . . . . . . . . . . . . . . . . . . . . . . . . . . . . . Power Chain Reactions 11 | . . . . . . . . . . 3 . 2 . . . . . . 1 . . . . . . 3 1 1 . . Missiles Intercepted . | . . . . . . . . . . . . . . . . . . . . . . . . . . . . . . . Alert | -11 -10 -10 -10 -9 -8 -7 -7 -7 -7 -7 -6 -6 -6 -6 -6 -5 -5 -5 -5 -5 -5 -4 -4 -4 -4 -4 -4 -4 -3 -3 ------- Run | Scr Mat Min Exi Min Mat Fac Low Low Zio Dee Pro Fac Low Low Dat Pro Fac Was Fac Upp Upp Fac Was Fac Ext Cet Arc Hub Res Tes Peak Influence 1349 | . 290 111 . 100 358 283 . . . . . 757 . . . . 112 158 1349 . . 516 188 95 296 310 299 1034 711 279 Initial 542 | . . 111 . . . 9 . . . . . . . . . . . 39 110 . . 88 180 . . . 113 42 542 139 Average 208 | . 138 80 . 66 174 115 . . . . . 281 . . . . 60 118 967 . . 197 81 27 113 188 189 154 235 168 Maximum Alert Level 4 | . 1 . . . 1 1 . . . . . 3 . . . . . . 4 . . 2 . . 1 1 1 3 3 1 Low Security (%) 70 | 100 94 100 . 100 59 72 . . . . . 60 . . . . 100 100 10 . . 73 100 100 73 50 57 65 60 72 Level 1 18 | . 6 . . . 40 27 . . . . . . . . . . . . 17 . . . . . 26 49 42 34 21 27 Level 2 3 | . . . . . . . . . . . . 25 . . . . . . . . . 26 . . . . . . 10 . Level 3 1 | . . . . . . . . . . . . 13 . . . . . . 2 . . . . . . . . . 7 . Level 4 5 | . . . . . . . . . . . . . . . . . . . 68 . . . . . . . . . . . Level 5 . | . . . . . . . . . . . . . . . . . . . . . . . . . . . . . . . High Security . | . . . . . . . . . . . . . . . . . . . . . . . . . . . . . . . Max Security . | . . . . . . . . . . . . . . . . . . . . . . . . . . . . . . . Squads Dispatched 54 | . 3 . . 1 1 8 . . . . . 5 . 1 . . 2 . 9 . . 3 . 2 5 . . 3 5 6 Investigation 9 | . 1 . . . . 1 . . . . . . . . . . 2 . 2 . . . . . 1 . . . 1 1 Extermination 13 | . . . . . . 2 . . . . . . . . . . . . 2 . . 2 . 2 . . . 2 2 1 Reinforcement 22 | . 2 . . . 1 4 . . . . . 2 . . . . . . 5 . . . . . 4 . . 1 2 1 Assault 4 | . . . . 1 . . . . . . . 1 . 1 . . . . . . . 1 . . . . . . . . Garrison 6 | . . . . . . 1 . . . . . 2 . . . . . . . . . . . . . . . . . 3 Intercept . | . . . . . . . . . . . . . . . . . . . . . . . . . . . . . . . Construction Impeded 9 | . . . . . . 2 . . . . . 1 . . . . . . 2 . . . . . 2 . . . 2 . Haulers Reinforced 2 | . . . . . . 1 . . . . . . . . . . . . 1 . . . . . . . . . . . Stealth | -11 -10 -10 -10 -9 -8 -7 -7 -7 -7 -7 -6 -6 -6 -6 -6 -5 -5 -5 -5 -5 -5 -4 -4 -4 -4 -4 -4 -4 -3 -3 --------- Run | Scr Mat Min Exi Min Mat Fac Low Low Zio Dee Pro Fac Low Low Dat Pro Fac Was Fac Upp Upp Fac Was Fac Ext Cet Arc Hub Res Tes Distress Signals 23 | . 2 . . . 3 3 . . . . . 2 . . . . . . 2 . . . . . 5 1 . 2 1 2 Communications Jammed 5 | . . . . . . . . . . . . . . . . . . . . . . . . . 5 . . . . . Distress Signals 5 | . . . . . . . . . . . . . . . . . . . . . . . . . 5 . . . . . Times Spotted 424 | . 23 . . 5 23 36 4 1 . 11 . 34 10 27 . 3 4 5 34 4 4 11 15 9 28 18 21 22 43 29 Peak Tracking Total 15 | . 6 . . 5 8 5 4 1 . 3 . 7 4 6 . 3 4 2 6 1 4 4 4 2 7 5 1 15 13 11 Tactical Retreats 41 | . 2 . . 1 . 4 . . . . . 2 3 4 . 1 . . 1 . . 2 7 . 3 . . . 6 5 Traps | -11 -10 -10 -10 -9 -8 -7 -7 -7 -7 -7 -6 -6 -6 -6 -6 -5 -5 -5 -5 -5 -5 -4 -4 -4 -4 -4 -4 -4 -3 -3 ------- Run | Scr Mat Min Exi Min Mat Fac Low Low Zio Dee Pro Fac Low Low Dat Pro Fac Was Fac Upp Upp Fac Was Fac Ext Cet Arc Hub Res Tes Traps Triggered 10 | . . . . . . 2 . . . . . . . . . . 1 . . . . 1 . 2 2 . . . 1 1 Indirectly . | . . . . . . . . . . . . . . . . . . . . . . . . . . . . . . . Trap Hack Attempts . | . . . . . . . . . . . . . . . . . . . . . . . . . . . . . . . Triggered . | . . . . . . . . . . . . . . . . . . . . . . . . . . . . . . . Disarmed 4 | . . . . . . . . . . . . . . . . . . . . . . . . . . . . . . 4 Reprogrammed 4 | . . . . . . . . . . . . . . . . . . . . . . . . . . . . . . 4 Reused 1 | . . . . . . . . . . . . . . . . . . . . . . . . . . . . . . 1 Traps Extracted . | . . . . . . . . . . . . . . . . . . . . . . . . . . . . . . . Installed . | . . . . . . . . . . . . . . . . . . . . . . . . . . . . . . . Triggered 4 | . . . . . . . . . . . . . 1 1 . . . . . 1 . . . . . . . . . 1 Machines | -11 -10 -10 -10 -9 -8 -7 -7 -7 -7 -7 -6 -6 -6 -6 -6 -5 -5 -5 -5 -5 -5 -4 -4 -4 -4 -4 -4 -4 -3 -3 ---------- Run | Scr Mat Min Exi Min Mat Fac Low Low Zio Dee Pro Fac Low Low Dat Pro Fac Was Fac Upp Upp Fac Was Fac Ext Cet Arc Hub Res Tes Machines Disabled 56 | . 2 . . . 1 2 . . . 1 . 13 . 1 . . . . 5 . . . . 2 1 4 1 14 3 6 Max in Single Turn 14 | . 2 . . . 1 1 . . . 1 . 13 . 1 . . . . 1 . . . . 1 1 3 1 14 2 1 Garrison Access 3 | . . . . . . 1 . . . . . 1 . . . . . . . . . . . . . . . 1 . . Network Hub 2 | . . . . . . . . . . . . . . . . . . . . . . . . . . . . 2 . . Energy Cycler 1 | . . . . . . . . . . . . . . . . . . . . . . . . . 1 . . . . . Machines Sabotaged . | . . . . . . . . . . . . . . . . . . . . . . . . . . . . . . . Garrisons Compromised . | . . . . . . . . . . . . . . . . . . . . . . . . . . . . . . . Overloaded Fab Kills . | . . . . . . . . . . . . . . . . . . . . . . . . . . . . . . . Fab Network Shutdowns 1 | . . . . . . . . . . . . . . . . . . . . . . 1 . . . . . . . . Hacking | -11 -10 -10 -10 -9 -8 -7 -7 -7 -7 -7 -6 -6 -6 -6 -6 -5 -5 -5 -5 -5 -5 -4 -4 -4 -4 -4 -4 -4 -3 -3 --------- Run | Scr Mat Min Exi Min Mat Fac Low Low Zio Dee Pro Fac Low Low Dat Pro Fac Was Fac Upp Upp Fac Was Fac Ext Cet Arc Hub Res Tes Machines Accessed 67 | . 1 . 1 . 5 9 . . . . . 3 . 1 3 . 1 . 6 . . 2 . 1 7 2 . 4 11 10 Terminals 44 | . 1 . . . 4 5 . . . . . 2 . . . . . . 4 . . 1 . 1 7 2 . 3 8 6 Fabricators 6 | . . . . . . 1 . . . . . . . . . . . . 1 . . 1 . . . . . . 1 2 Repair Stations 4 | . . . . . . . . . . . . . . . . . 1 . . . . . . . . . . . 1 2 Recycling Units . | . . . . . . . . . . . . . . . . . . . . . . . . . . . . . . . Scanalyzers 6 | . . . . . 1 2 . . . . . 1 . . . . . . 1 . . . . . . . . . 1 . Garrison Access 2 | . . . . . . 1 . . . . . . . . . . . . . . . . . . . . . 1 . . Total Hacks 238 | . 3 . 4 . 13 22 . . . . . 10 . 1 23 . 4 . 10 . . 5 . 5 22 8 . 9 60 39 Successful 160 | . . . 4 . 9 15 . . . . . 4 . 1 23 . 3 . 3 . . 3 . 2 10 2 . 7 44 30 Failed 75 | . 3 . . . 4 7 . . . . . 6 . . . . 1 . 7 . . 2 . 3 11 6 . 2 15 8 Catastrophic 8 | . . . . . . . . . . . . . . . . . . . 1 . . 1 . . 4 1 . . 1 . Database Lockouts 3 | . . . . . . . . . . . . . . . . . . . . . . . . . 1 . . . 1 1 Manual 94 | . . . . . 4 6 . . 1 . . 3 . . . . . . 4 . . 1 . 2 19 8 1 5 32 8 Terminals 152 | . 3 . . . 9 12 . . . . . 5 . . . . . . 5 . . 2 . 5 22 8 . 8 47 26 Fabricators 22 | . . . . . . 2 . . . . . . . . . . . . 2 . . 3 . . . . . . 8 7 Repair Stations 12 | . . . . . . . . . . . . . . . . . 4 . . . . . . . . . . . 2 6 Recycling Units . | . . . . . . . . . . . . . . . . . . . . . . . . . . . . . . . Scanalyzers 22 | . . . . . 4 7 . . . . . 5 . . . . . . 3 . . . . . . . . . 3 . Garrison Access 2 | . . . . . . 1 . . . . . . . . . . . . . . . . . . . . . 1 . . Terminal Hacks 89 | . . . 4 . 3 3 . . . . . 1 . 1 23 . . . 1 . . . . 2 8 2 . 1 24 16 Record 10 | . . . 4 . . . . . . . . . . . 6 . . . . . . . . . . . . . . . Part Schematic 15 | . . . . . . . . . . . . . . . 6 . . . . . . . . . 2 1 . . 5 1 Robot Schematic 8 | . . . . . . . . . . . . . . . 8 . . . . . . . . . . . . . . . Robot Analysis 1 | . . . . . . . . . . . . . . . . . . . . . . . . . . . . . 1 . Prototype ID Bank 3 | . . . . . . . . . . . . . . . 3 . . . . . . . . . . . . . . . Open Door 2 | . . . . . . . . . . . . . . 1 . . . . . . . . . 1 . . . . . . Level Access Points 2 | . . . . . 1 . . . . . . . . . . . . . . . . . . . . . . . . 1 Branch Access Points 3 | . . . . . . . . . . . . 1 . . . . . . 1 . . . . . . . . . 1 . Emergency Access Points 2 | . . . . . . . . . . . . . . . . . . . . . . . . . . . . . 1 1 Machine Index 1 | . . . . . . . . . . . . . . . . . . . . . . . . . . . . . . 1 Terminal Index 1 | . . . . . . . . . . . . . . . . . . . . . . . . . . . . . 1 . Fabricator Index 1 | . . . . . . . . . . . . . . . . . . . . . . . . . . . . . 1 . Scanalyzer Index 1 | . . . . . . . . . . . . . . . . . . . . . . . . . . . . . 1 . Unreport Threat 15 | . . . . . 1 . . . . . . . . . . . . . . . . . . 1 3 1 . . 6 3 Locate Traps 7 | . . . . . 1 2 . . . . . . . . . . . . . . . . . . . . . 1 . 3 Disarm Traps 2 | . . . . . . . . . . . . . . . . . . . . . . . . . . . . . . 2 Reprogram Traps 1 | . . . . . . . . . . . . . . . . . . . . . . . . . . . . . . 1 Dispatch Records 1 | . . . . . . . . . . . . . . . . . . . . . . . . . 1 . . . . . Recall Investigation 1 | . . . . . . . . . . . . . . . . . . . . . . . . . . . . . . 1 Recall Extermination 1 | . . . . . . . . . . . . . . . . . . . . . . . . . . . . . . 1 Recall Reinforcements 4 | . . . . . . . . . . . . . . . . . . . . . . . . . 2 . . . 2 . Hauler Manifests 1 | . . . . . . . . . . . . . . . . . . . . . . . . . . . . . 1 . Registered Components 1 | . . . . . . . . . . . . . . . . . . . . . . . . . . . . . 1 . Registered Prototypes 1 | . . . . . . . . . . . . . . . . . . . . . . . . . . . . . . 1 Zone Layout 4 | . . . . . . 1 . . . . . . . . . . . . . . . . . . . . . . 3 . Fabricator Hacks 14 | . . . . . . 2 . . . . . . . . . . . . 1 . . 2 . . . . . . 5 4 Load Schematic 6 | . . . . . . 1 . . . . . . . . . . . . . . . 1 . . . . . . 2 2 Build 8 | . . . . . . 1 . . . . . . . . . . . . 1 . . 1 . . . . . . 3 2 Repair Station Hacks 11 | . . . . . . . . . . . . . . . . . 3 . . . . . . . . . . . 2 6 Scan Component 6 | . . . . . . . . . . . . . . . . . 2 . . . . . . . . . . . 1 3 Repair 5 | . . . . . . . . . . . . . . . . . 1 . . . . . . . . . . . 1 3 Recycling Unit Hacks . | . . . . . . . . . . . . . . . . . . . . . . . . . . . . . . . Scanalyzer 17 | . . . . . 4 7 . . . . . 2 . . . . . . 1 . . . . . . . . . 3 . Insert Component 9 | . . . . . 2 3 . . . . . 2 . . . . . . 1 . . . . . . . . . 1 . Analyze 8 | . . . . . 2 4 . . . . . . . . . . . . . . . . . . . . . . 2 . Garrison Access Hacks 2 | . . . . . . 1 . . . . . . . . . . . . . . . . . . . . . 1 . . Seal Access 2 | . . . . . . 1 . . . . . . . . . . . . . . . . . . . . . 1 . . Unauthorized Hacks 27 | . . . . . 2 2 . . . . . 1 . . . . . . . . . 1 . . 2 . . 5 10 4 Terminals 25 | . . . . . 2 2 . . . . . 1 . . . . . . . . . 1 . . 2 . . 5 9 3 Track 10 | . . . . . . 1 . . . . . 1 . . . . . . . . . . . . . . . 3 4 1 Assimilate 2 | . . . . . . . . . . . . . . . . . . . . . . . . . . . . . 2 . Botnet 11 | . . . . . 2 1 . . . . . . . . . . . . . . . 1 . . 2 . . 1 2 2 Operators 2 | . . . . . . . . . . . . . . . . . . . . . . . . . . . . 1 1 . Fabricators 2 | . . . . . . . . . . . . . . . . . . . . . . . . . . . . . 1 1 Report 1 | . . . . . . . . . . . . . . . . . . . . . . . . . . . . . 1 . Siphon 1 | . . . . . . . . . . . . . . . . . . . . . . . . . . . . . . 1 Repair Stations . | . . . . . . . . . . . . . . . . . . . . . . . . . . . . . . . Recycling Units . | . . . . . . . . . . . . . . . . . . . . . . . . . . . . . . . Scanalyzers . | . . . . . . . . . . . . . . . . . . . . . . . . . . . . . . . Garrison Access . | . . . . . . . . . . . . . . . . . . . . . . . . . . . . . . . Data Cores Recovered . | . . . . . . . . . . . . . . . . . . . . . . . . . . . . . . . Used . | . . . . . . . . . . . . . . . . . . . . . . . . . . . . . . . Hacking Detections 43 | . 1 . . . 2 6 . . . . . 3 . . . . 1 . 6 . . 1 . 1 4 1 . 3 6 8 Full Trace Events 5 | . 1 . . . . 1 . . . . . . . . . . 1 . 1 . . . . . 1 . . . . . Feedback Events 1 | . . . . . . . . . . . . . . . . . . . 1 . . . . . . . . . . . Corruption 1 | . . . . . . . . . . . . . . . . . . . 1 . . . . . . . . . . . Feedback Blocked . | . . . . . . . . . . . . . . . . . . . . . . . . . . . . . . . Robot Schematics Acquired 8 | . . . . . . . . . . . . . . . 8 . . . . . . . . . . . . . . . Robots Built . | . . . . . . . . . . . . . . . . . . . . . . . . . . . . . . . Matter . | . . . . . . . . . . . . . . . . . . . . . . . . . . . . . . . Time . | . . . . . . . . . . . . . . . . . . . . . . . . . . . . . . . Total Robot Build Rating . | . . . . . . . . . . . . . . . . . . . . . . . . . . . . . . . Part Schematics Acquired 20 | . . . . . 2 2 . . . . . . . . 6 . . . . . . . . . 2 1 . . 6 1 Parts Built 8 | . . . . . . 1 . . . . . . . . . . . . 1 . . 1 . . . . . . 3 2 Matter 2079 | . . . . . . 219 . . . . . . . . . . . . 256 . . 318 . . . . . . 855 431 Time 589 | . . . . . . 116 . . . . . . . . . . . . 64 . . 169 . . . . . . 150 90 Total Part Build Rating 43 | . . . . . . 3 . . . . . . . . . . . . 8 . . 6 . . . . . . 15 11 Parts Repaired 5 | . . . . . . . . . . . . . . . . . 1 . . . . . . . . . . . 1 3 Time 254 | . . . . . . . . . . . . . . . . . 26 . . . . . . . . . . . 74 154 Parts Recycled . | . . . . . . . . . . . . . . . . . . . . . . . . . . . . . . . Recycled Matter . | . . . . . . . . . . . . . . . . . . . . . . . . . . . . . . . Retrieved Matter . | . . . . . . . . . . . . . . . . . . . . . . . . . . . . . . . Retrieved Components . | . . . . . . . . . . . . . . . . . . . . . . . . . . . . . . . Parts Scanalyzed 6 | . . . . . 2 2 . . . . . 1 . . . . . . . . . . . . . . . . 1 . Part Schematics Acquired 5 | . . . . . 2 2 . . . . . . . . . . . . . . . . . . . . . . 1 . Parts Damaged . | . . . . . . . . . . . . . . . . . . . . . . . . . . . . . . . Bothacking | -11 -10 -10 -10 -9 -8 -7 -7 -7 -7 -7 -6 -6 -6 -6 -6 -5 -5 -5 -5 -5 -5 -4 -4 -4 -4 -4 -4 -4 -3 -3 ------------ Run | Scr Mat Min Exi Min Mat Fac Low Low Zio Dee Pro Fac Low Low Dat Pro Fac Was Fac Upp Upp Fac Was Fac Ext Cet Arc Hub Res Tes Used RIF Installer . | . . . . . . . . . . . . . . . . . . . . . . . . . . . . . . . Robots Hacked 1 | . . . . . . 1 . . . . . . . . . . . . . . . . . . . . . . . . Non-combat 1 | . . . . . . 1 . . . . . . . . . . . . . . . . . . . . . . . . Combat . | . . . . . . . . . . . . . . . . . . . . . . . . . . . . . . . Robot Hacks Applied 1 | . . . . . . 1 . . . . . . . . . . . . . . . . . . . . . . . . find_chute 1 | . . . . . . 1 . . . . . . . . . . . . . . . . . . . . . . . . Relay Couplers Released 8 | . . . . . . . . . . . . 2 . . . . . . . . . . . . . . . 2 4 . Machine Destruction 4 | . . . . . . . . . . . . 2 . . . . . . . . . . . . . . . 2 . . Programmers 4 | . . . . . . . . . . . . . . . . . . . . . . . . . . . . . 4 . Robots Rewired 8 | . . . . . . . . . . . . . . 1 . . . . . . . . . . 7 . . . . . Allies Hacked . | . . . . . . . . . . . . . . . . . . . . . . . . . . . . . . . Hacks Repelled . | . . . . . . . . . . . . . . . . . . . . . . . . . . . . . . . Allies | -11 -10 -10 -10 -9 -8 -7 -7 -7 -7 -7 -6 -6 -6 -6 -6 -5 -5 -5 -5 -5 -5 -4 -4 -4 -4 -4 -4 -4 -3 -3 -------- Run | Scr Mat Min Exi Min Mat Fac Low Low Zio Dee Pro Fac Low Low Dat Pro Fac Was Fac Upp Upp Fac Was Fac Ext Cet Arc Hub Res Tes Total Allies 38 | . . . . 1 . . . . 5 . . . . 1 . 1 . 20 . . . . . . 8 . . . 2 . Largest Group 21 | . . . . 1 . . . . 5 5 . . . 1 . 1 1 21 20 . . . . . 4 . . . 1 . Highest-Rated Group 814 | . . . . 31 . . . . 146 146 . . . 29 . 94 94 814 789 . . . . . 156 . . . 44 . Highest-Rated Ally 94 | . . . . 31 . . . . 31 31 . . . 29 . 94 94 87 87 . . . . . 49 . . . 44 . Total Orders 1 | . . . . . . . . . . . . . . . . . . . . . . . . . 1 . . . . . ROAM 1 | . . . . . . . . . . . . . . . . . . . . . . . . . 1 . . . . . Ally Attacks 332 | . . . . 8 . . . . . 55 . . . 4 . 9 13 77 141 . . . . . 25 . . . . . Total Damage 9688 | . . . . 103 . . . . . 587 . . . 62 . 229 352 2606 5028 . . . . . 721 . . . . . Kills 59 | . . . . 2 . . . . . 7 . . . 1 . 2 2 5 38 . . . . . 2 . . . . . Allies Corrupted . | . . . . . . . . . . . . . . . . . . . . . . . . . . . . . . . Allies Melted 1 | . . . . . . . . . . . . . . . . . . . 1 . . . . . . . . . . . Intel | -11 -10 -10 -10 -9 -8 -7 -7 -7 -7 -7 -6 -6 -6 -6 -6 -5 -5 -5 -5 -5 -5 -4 -4 -4 -4 -4 -4 -4 -3 -3 ------- Run | Scr Mat Min Exi Min Mat Fac Low Low Zio Dee Pro Fac Low Low Dat Pro Fac Was Fac Upp Upp Fac Was Fac Ext Cet Arc Hub Res Tes Robot Analysis Total 1 | . . . . . . . . . . . . . . . . . . . . . . . . . . . . . 1 . Derelict Logs Recovered 16 | . . 1 . 2 . . 2 2 1 . 2 . 2 . . 2 . . . 1 1 . . . . . . . . . Drone Launches . | . . . . . . . . . . . . . . . . . . . . . . . . . . . . . . . Drone Recoveries . | . . . . . . . . . . . . . . . . . . . . . . . . . . . . . . . Decoded 0b10 Intel 34 | . . . . . . . . . . . . . . . . . 4 3 27 . . . . . . . . . . . Items 34 | . . . . . . . . . . . . . . . . . 4 3 27 . . . . . . . . . . . Exploration | -11 -10 -10 -10 -9 -8 -7 -7 -7 -7 -7 -6 -6 -6 -6 -6 -5 -5 -5 -5 -5 -5 -4 -4 -4 -4 -4 -4 -4 -3 -3 ------------- Run | Scr Mat Min Exi Min Mat Fac Low Low Zio Dee Pro Fac Low Low Dat Pro Fac Was Fac Upp Upp Fac Was Fac Ext Cet Arc Hub Res Tes Turns Passed 23561 | 50 350 549 285 526 515 1811 1183 770 898 2280 343 1071 349 929 99 561 274 165 1127 1134 910 555 917 955 1357 359 799 1011 747 682 Spaces Moved 14121 | 46 187 266 189 394 198 990 760 557 661 1581 233 598 247 613 77 400 154 89 668 659 439 205 442 402 489 145 236 438 976 782 Core 14 | 3 . . . . . . . . . . . . . . . . . . . . . . . . . . . . 11 . Treads 3754 | . . 266 68 . 159 260 . . . 116 . 106 . . . . . . 3 374 439 165 75 402 489 145 236 438 13 . Legs 56 | . . . . . . . . . . . . . . . . . 56 . . . . . . . . . . . . . Wheels 8563 | 43 187 . 121 394 39 730 760 557 661 1465 233 492 247 613 77 400 98 89 665 285 . 40 367 . . . . . . . Hover . | . . . . . . . . . . . . . . . . . . . . . . . . . . . . . . . Flight 1734 | . . . . . . . . . . . . . . . . . . . . . . . . . . . . . 952 782 Fastest Speed 17 | 50 80 200 120 130 150 120 130 130 130 110 130 110 110 110 130 130 130 130 115 115 180 116 116 180 180 180 160 160 17 17 Average Speed 129 | 78 98 200 150 130 174 145 130 130 130 125 130 137 110 123 130 130 139 131 129 151 180 167 130 188 180 180 177 167 37 35 Slowest Speed 240 | 80 120 200 200 130 180 200 130 130 130 200 130 220 110 130 130 130 153 140 240 180 180 180 200 200 180 180 180 180 200 40 Overloaded Moves . | . . . . . . . . . . . . . . . . . . . . . . . . . . . . . . . Propulsion Burnouts . | . . . . . . . . . . . . . . . . . . . . . . . . . . . . . . . Robots Hopped 40 | . . . . . . . . . . . . . . . . . . . . . . . . . . . . . 27 13 Cave-ins Triggered . | . . . . . . . . . . . . . . . . . . . . . . . . . . . . . . . Exploration Rate (%) 52 | 4 38 58 50 80 33 31 91 86 81 77 39 14 51 82 74 65 7 81 24 66 52 7 87 7 55 57 89 43 27 77 Regions Visited 30 Branch Regions 19 Pre-discovered Areas 10 | . . 2 1 . . . 1 1 1 . 2 . . . 1 . . . . . 1 . . . . . . . . . Known Exits Taken 16 | . . . . . 1 1 1 1 1 . 1 1 . . . . . . 1 1 1 . . 1 1 1 1 1 1 . Unknown Exits Taken 10 | 1 1 1 1 1 . . . . . 1 . . 1 1 1 1 . . . . . . . . . . . . . . Scrap Searched 26 | . . 2 . 2 . . 5 3 4 . 2 . 2 2 . . . . . 3 1 . . . . . . . . . Spaces Dug 291 | . . . . . . . 32 5 3 42 18 5 . 67 . 11 . . 17 5 10 4 3 10 14 . . 6 16 23 Terrain Destroyed 1522 | . 52 . . 19 20 17 43 5 3 63 19 135 . 217 . 11 . 58 51 6 12 7 5 13 196 21 14 370 72 93 Melee 48 | . . . . . . . 3 5 3 . . . . . . . . . . 3 . . . . . . . 5 16 13 Projectile 195 | . . . . . . . . . . 42 19 8 . 11 . 11 . . 19 3 12 7 5 13 25 . 1 8 . 11 AOE 1279 | . 52 . . 19 20 17 40 . . 21 . 127 . 206 . . . 58 32 . . . . . 171 21 13 357 56 69 Terrain Rammed . | . . . . . . . . . . . . . . . . . . . . . . . . . . . . . . . Walls Destroyed . | . . . . . . . . . . . . . . . . . . . . . . . . . . . . . . . Machines Disabled . | . . . . . . . . . . . . . . . . . . . . . . . . . . . . . . . Actions | -11 -10 -10 -10 -9 -8 -7 -7 -7 -7 -7 -6 -6 -6 -6 -6 -5 -5 -5 -5 -5 -5 -4 -4 -4 -4 -4 -4 -4 -3 -3 --------- Run | Scr Mat Min Exi Min Mat Fac Low Low Zio Dee Pro Fac Low Low Dat Pro Fac Was Fac Upp Upp Fac Was Fac Ext Cet Arc Hub Res Tes Total 17766 | 56 304 282 191 405 269 1219 932 590 691 1788 253 734 300 709 76 420 203 122 830 758 522 379 627 526 827 226 565 612 1247 1103 Wait 1863 | 1 74 11 . 5 2 54 140 10 14 47 1 52 20 13 . 1 27 15 42 58 47 138 75 55 188 40 250 68 182 233 Move 14024 | 45 186 265 188 393 197 989 759 556 660 1580 232 597 246 612 76 399 154 88 667 658 438 205 441 401 488 144 235 437 930 758 Hop 29 | . . . . . . . . . . . . . . . . . . . . . . . . . . . . . 18 11 Pick Up 208 | 4 7 1 . 3 7 37 2 4 3 25 . 4 5 1 . . 3 1 19 6 3 2 3 3 13 6 19 8 11 8 Fast Attach 90 | 6 1 . 1 . 1 7 . 2 3 12 . 3 1 3 . . 2 . 6 1 1 4 4 5 4 3 3 3 4 10 Attach 138 | . 2 4 . . 5 16 6 5 . 11 . 7 3 7 . 2 3 4 12 3 4 5 1 1 6 4 4 2 16 5 Detach 47 | . . . . . . 1 6 2 2 6 . 1 1 1 . . 2 1 5 1 . 2 3 2 1 . 7 1 1 1 Swap 173 | . 3 . . 2 5 13 5 1 . 11 . 10 4 16 . 2 2 4 12 8 4 2 2 4 14 7 2 20 10 10 Drop 144 | . 1 . 2 . . 14 1 3 4 30 . 2 1 1 . . 1 2 4 2 . 1 13 5 7 9 10 8 13 10 Fire 846 | . 30 1 . 2 52 88 10 2 . 66 20 56 19 51 . 16 9 7 54 8 14 20 85 50 82 13 18 33 21 19 Melee 173 | . . . . . . . 3 5 5 . . . . . . . . . 9 13 11 . . . . . 17 32 41 37 Ram . | . . . . . . . . . . . . . . . . . . . . . . . . . . . . . . . Kick . | . . . . . . . . . . . . . . . . . . . . . . . . . . . . . . . Crush 2 | . . . . . . . . . . . . 2 . . . . . . . . . . . . . . . . . . Escape Stasis 5 | . . . . . . . . . . . . . . . . . . . . . . . . . 4 . . . . 1 Rewire 24 | . . . . . . . . . . . . . . 4 . . . . . . . . . . 20 . . . . . Trap . | . . . . . . . . . . . . . . . . . . . . . . . . . . . . . . . Miscellaneous . | . . . . . . . . . . . . . . . . . . . . . . . . . . . . . . . Route ------- -11/Scrapyard -10/Materials (discovered 2 exits: [*Min x2]) -10/Mines (discovered 2 exits: [*Mat] / *Exi) -10/Exiles -9/Mines (discovered 2 exits: *Mat x2) -8/Materials (discovered 4 exits: *Fac x3 / Sto) -7/Factory (discovered 3 exits: *Fac x2 / *Low) -7/Lower Caves -7/Lower Caves (discovered 2 exits: *Fac / *Zio) -7/Zion (discovered 2 exits: *Dee / [Pro]) -7/Deep Caves -6/Proximity Caves -6/Factory (discovered 2 exits: *Low x2) -6/Lower Caves -6/Lower Caves (discovered 2 exits: *Fac / *Dat) -6/Data Miner -5/Proximity Caves -5/Factory -5/Waste -5/Factory (discovered 3 exits: *Fac / *Upp x2) -5/Upper Caves -5/Upper Caves -4/Factory -4/Waste -4/Factory -4/Extension (discovered 2 exits: *Res / *Cet) -4/Cetus -4/Archives (discovered 3 exits: *Res / *Hub x2) -4/Hub_04(d) (discovered 2 exits: *Res x2) -3/Research (discovered 2 exits: *Tes x2) -3/Testing (discovered 1 exit: *Res) History --------- Turn | Location | Event 22 | -11/Scrapyard | Discovered new exit (range 16) 51 | -11/Scrapyard | Entered Materials 85 | -10/Materials | Discovered new exit (range 16) 300 | -10/Materials | Build established: Mutant 384 | -10/Materials | Discovered new exit (range 7) 401 | -10/Materials | Entered Mines 402 | -10/Mines | Learned location of Storage (-8) 423 | -10/Mines | Lost 5 parts (1p1n3w) 517 | -10/Mines | Received a Rocket Launcher from a helpful Derelict 681 | -10/Mines | Learned location of Zion (-7) 701 | -10/Mines | Found a hidden stash of uninstalled traps 902 | -10/Mines | Discovered new exit (range 10) 942 | -10/Mines | Deemed a non-threat by the Exiles lab entrance 942 | -10/Mines | Discovered new exit (range 5) 950 | -10/Mines | Entered Exiles 998 | -10/Exiles | Met 8R-AWN 1034 | -10/Exiles | Met EX-HEX 1094 | -10/Exiles | Met EX-BIN 1108 | -10/Exiles | Met EX-DEC 1160 | -10/Exiles | Discovered new exit (range 10) 1235 | -10/Exiles | Entered Mines 1236 | -9/Mines | Met a Derelict testing a Signal Generator 1265 | -9/Mines | Met a Derelict bent on vengeance 1330 | -9/Mines | Learned Materials trap positions 1332 | -9/Mines | Discovered new exit (range 12) 1567 | -9/Mines | Learned 2 Materials zone layouts 1597 | -9/Mines | Discovered new exit (range 5) 1653 | -9/Mines | Assembled infested the area 1761 | -9/Mines | Entered Materials 1761 | -8/Materials | Evolved 4 slots: Utility x4 1762 | -8/Materials | Identified exit to Storage 1763 | -8/Materials | Loaded intel: 9 trap records 2070 | -8/Materials | Build established: Hauler-Mutant 2141 | -8/Materials | Identified exit to Factory 2276 | -8/Materials | Entered Factory 2276 | -7/Factory | Evolved 2 slots: Utility x2 2860 | -7/Factory | Lost 4 parts (2n2u) 3176 | -7/Factory | Garrison activated, responded to threat 3449 | -7/Factory | Discovered new exit (range 12) 3463 | -7/Factory | Identified exit to Factory 3900 | -7/Factory | Fabricated Enh. Autogun? 4042 | -7/Factory | Discovered new exit (range 7) 4086 | -7/Factory | Identified exit to Lower Caves 4087 | -7/Factory | Discovered exit to Factory (range 6) 4087 | -7/Factory | Entered Lower Caves 4289 | -7/Lower Caves | Attracted the attention of an 0b10 checkpoint 4664 | -7/Lower Caves | Build established: Hauler-Assassin 4785 | -7/Lower Caves | Encountered a Warlord checkpoint 5049 | -7/Lower Caves | Discovered new exit (range 15) 5052 | -7/Lower Caves | Learned Factory terminal intel 5220 | -7/Lower Caves | Identified exit to Lower Caves 5270 | -7/Lower Caves | Entered another Lower Caves area 5286 | -7/Lower Caves | Discovered exit to Factory (range 12) 5460 | -7/Lower Caves | Learned Factory garrison access intel 5461 | -7/Lower Caves | Learned location of Extension (-4) 5608 | -7/Lower Caves | Attracted the attention of an 0b10 checkpoint 5615 | -7/Lower Caves | Core integrity fell below 50% 5864 | -7/Lower Caves | Found Alien Artifact 5864 | -7/Lower Caves | Identified Core Expander 5864 | -7/Lower Caves | Installed Core Expander, added new Propulsion slot 5972 | -7/Lower Caves | Discovered new exit (range 13) 6039 | -7/Lower Caves | Identified exit to Zion 6040 | -7/Lower Caves | Entered Zion 6072 | -7/Zion | Received a visual enhancement algorithm 6124 | -7/Zion | Given A8's code to call for help 6162 | -7/Zion | Discovered new exit (range 15) 6164 | -7/Zion | Gained Derelict followers 6290 | -7/Zion | Given the Hacking Drone Bay 6445 | -7/Zion | Learned location of Data Miner (-6) 6561 | -7/Zion | Found Prototype Hackware 6568 | -7/Zion | Found Prototype Processor 6568 | -7/Zion | Identified Exp. Armor Integrity Analyzer 6572 | -7/Zion | Found Prototype Processor 6574 | -7/Zion | Found Prototype Processor 6574 | -7/Zion | Identified Spectral Analyzer 6919 | -7/Zion | Discovered new exit (range 4) 6922 | -7/Zion | Saw the warning signs outside the Deep Caves entrance 6937 | -7/Zion | Identified exit to Deep Caves 6938 | -7/Zion | Entered Deep Caves 6938 | -7/Deep Caves | Accompanied by 5 allies 7296 | -7/Deep Caves | Attacked by Z-Imprinter 7326 | -7/Deep Caves | Destroyed Z-Imprinter 7356 | -7/Deep Caves | Found Prototype Device 7356 | -7/Deep Caves | Identified Zio. Metafield Generator 7370 | -7/Deep Caves | Found Prototype Protection 7370 | -7/Deep Caves | Identified Zio. Weapon Casing 7573 | -7/Deep Caves | Found Zio. Weapon Casing 7643 | -7/Deep Caves | Discovered new exit (range 7) 7856 | -7/Deep Caves | Build established: Scavenger-Mutant 7880 | -7/Deep Caves | Spotted as-49605 7930 | -7/Deep Caves | Core integrity fell below 20% 7932 | -7/Deep Caves | Destroyed as-49605 7936 | -7/Deep Caves | Found GOLEM Unit 8706 | -7/Deep Caves | Build established: Hauler-Mutant 9093 | -7/Deep Caves | Found Prototype Protection 9093 | -7/Deep Caves | Identified Zio. Heavy Carapace 9218 | -7/Deep Caves | Entered Proximity Caves 9555 | -6/Proximity Caves | Discovered exit to Factory (range 4) 9561 | -6/Proximity Caves | Entered Factory 9561 | -6/Factory | Evolved 2 slots: Utility x2 9562 | -6/Factory | Loaded intel: 20 terminal locations 9563 | -6/Factory | Loaded intel: 4 garrison access locations 9752 | -6/Factory | Identified Exp. Melee Analysis Suite 9753 | -6/Factory | Identified Exp. Hacking Suite 10271 | -6/Factory | Garrison activated, responded to threat 10400 | -6/Factory | Identified exit to Lower Caves 10632 | -6/Factory | Entered Lower Caves 10633 | -6/Lower Caves | Encountered a Warlord checkpoint 10855 | -6/Lower Caves | Learned Factory garrison access intel 10857 | -6/Lower Caves | Learned Factory emergency access door positions 10961 | -6/Lower Caves | Discovered new exit (range 12) 10981 | -6/Lower Caves | Entered another Lower Caves area 10998 | -6/Lower Caves | Discovered new exit (range 15) 11230 | -6/Lower Caves | Attracted the attention of an 0b10 checkpoint 11532 | -6/Lower Caves | Attracted the attention of an 0b10 outpost 11710 | -6/Lower Caves | Lost 4 parts (2u2w) 11889 | -6/Lower Caves | Discovered new exit (range 13) 11910 | -6/Lower Caves | Entered Data Miner 11910 | -6/Data Miner | Discovered new exit (range 6) 11927 | -6/Data Miner | Met Data Miner 11960 | -6/Data Miner | Learned location of Section 7 (-2) 11960 | -6/Data Miner | Acquired the access code to Warlord's prototype stash 11979 | -6/Data Miner | Received God Mode back door access code from Data Miner 12009 | -6/Data Miner | Entered Proximity Caves 12185 | -5/Proximity Caves | Learned Factory emergency access door positions 12235 | -5/Proximity Caves | Escorted by Enhanced Grunt 12275 | -5/Proximity Caves | Learned Factory terminal intel 12557 | -5/Proximity Caves | Discovered new exit (range 9) 12570 | -5/Proximity Caves | Entered Factory 12570 | -5/Factory | Accompanied by 1 ally 12570 | -5/Factory | Evolved 2 slots: Utility x2 12571 | -5/Factory | Identified exit to Upper Caves 12573 | -5/Factory | Loaded intel: 20 terminal locations 12574 | -5/Factory | Loaded intel: 4 garrison access locations 12681 | -5/Factory | Incoming investigation squad redirected 12788 | -5/Factory | Repaired Lrg. Storage Unit 12844 | -5/Factory | Sucked down chute 12844 | -5/Factory | Entered Waste 12845 | -5/Waste | Met a frightened Derelict 12850 | -5/Waste | 1 allies followed down the chute 12859 | -5/Waste | EMP discharged 12872 | -5/Waste | Spotted C-40 Crusher 12883 | -5/Waste | Destroyed C-40 Crusher 12888 | -5/Waste | Spotted C-40 Crusher 12899 | -5/Waste | Spotted C-40 Crusher 12902 | -5/Waste | Met Warlord forces unprepared to attack 12907 | -5/Waste | Allies destroyed C-40 Crusher 12909 | -5/Waste | Allies destroyed C-40 Crusher 12930 | -5/Waste | Spotted C-40 Crusher 12932 | -5/Waste | Spotted C-40 Crusher 12934 | -5/Waste | Allies destroyed C-40 Crusher 12935 | -5/Waste | Spotted C-40 Crusher 12937 | -5/Waste | Allies destroyed C-40 Crusher 12939 | -5/Waste | Allies destroyed C-40 Crusher 12959 | -5/Waste | EMP discharged 12959 | -5/Waste | System corruption reached 10% 12975 | -5/Waste | Discovered new exit (range 12) 13009 | -5/Waste | Entered Factory 13009 | -5/Factory | Accompanied by 20 allies 13495 | -5/Factory | Fabricated Adv. Powered Armor (x1) 13501 | -5/Factory | Lost 6 parts (1p1u4w) 13609 | -5/Factory | Lost 3 parts (1p1n1w) 13690 | -5/Factory | Build established: Hacker-Mutant 14003 | -5/Factory | Discovered new exit (range 4) 14136 | -5/Factory | Entered Upper Caves 14357 | -5/Upper Caves | Attracted the attention of an 0b10 checkpoint 15130 | -5/Upper Caves | Identified exit to Upper Caves 15270 | -5/Upper Caves | Entered another Upper Caves area 15290 | -5/Upper Caves | Discovered new exit (range 7) 15340 | -5/Upper Caves | Lost 5 parts (2n3u) 15763 | -5/Upper Caves | Learned location of Warlord (-5) 15766 | -5/Upper Caves | Build established: Hauler-Mutant 16179 | -5/Upper Caves | Identified exit to Factory 16180 | -5/Upper Caves | Entered Factory 16180 | -4/Factory | Evolved 2 slots: Utility x2 16587 | -4/Factory | Local fabrication network quarantined 16616 | -4/Factory | Fabricated Mni. Smartbomb Launcher? 16718 | -4/Factory | First assault squad dispatched 16735 | -4/Factory | Sucked down chute 16735 | -4/Factory | Entered Waste 16745 | -4/Waste | Spotted C-40 Crusher 16869 | -4/Waste | Spotted C-40 Crusher 16876 | -4/Waste | Spotted C-40 Crusher 16929 | -4/Waste | Destroyed C-40 Crusher 16937 | -4/Waste | Found Damper Plating 17062 | -4/Waste | Spotted C-40 Crusher 17078 | -4/Waste | Destroyed C-40 Crusher 17093 | -4/Waste | Spotted C-40 Crusher 17148 | -4/Waste | Spotted C-40 Crusher 17152 | -4/Waste | Destroyed C-40 Crusher 17215 | -4/Waste | Build established: Hauler-Skirmisher 17238 | -4/Waste | Destroyed C-40 Crusher 17285 | -4/Waste | Destroyed C-40 Crusher 17292 | -4/Waste | Destroyed C-40 Crusher 17340 | -4/Waste | Discovered new exit (range 13) 17445 | -4/Waste | Found Damper Plating 17543 | -4/Waste | Found Damper Plating 17650 | -4/Waste | Identified exit to Factory 17652 | -4/Waste | Entered Factory 18243 | -4/Factory | Build established: Hauler-Mutant 18475 | -4/Factory | Discovered new exit (range 15) 18605 | -4/Factory | Identified exit to Extension 18607 | -4/Factory | Entered Extension 18679 | -4/Extension | Energy Cycler disabled 18679 | -4/Extension | Rescued a captive Derelict 18680 | -4/Extension | Rescued a captive Derelict 18680 | -4/Extension | Rescued a captive Derelict 18688 | -4/Extension | Rescued a captive Derelict 18761 | -4/Extension | Incoming investigation squad redirected 19141 | -4/Extension | Destroyed 7 combat bots 19250 | -4/Extension | Central database locked down 19569 | -4/Extension | Build established: Scavenger-Mutant 19632 | -4/Extension | Disrupted transfer network 19931 | -4/Extension | Discovered new exit (range 10) 19933 | -4/Extension | Discovered new exit (range 6) 19958 | -4/Extension | Identified exit to Cetus 19964 | -4/Extension | Entered Cetus 20004 | -4/Cetus | Spotted Cetus Guard 20004 | -4/Cetus | Spotted Cetus Guard 20008 | -4/Cetus | Spotted Cetus Guard 20017 | -4/Cetus | Destroyed Cetus Guard 20017 | -4/Cetus | Destroyed Cetus Guard 20017 | -4/Cetus | Spotted Cetus Guard 20018 | -4/Cetus | Destroyed Cetus Guard 20020 | -4/Cetus | Destroyed Cetus Guard 20062 | -4/Cetus | Cetus Manufacturing Module disabled 20212 | -4/Cetus | Discovered new exit (range 16) 20321 | -4/Cetus | Identified exit to Archives 20323 | -4/Cetus | Entered Archives 20462 | -4/Archives | Discovered new exit (range 15) 20524 | -4/Archives | Discovered new exit (range 16) 20557 | -4/Archives | Discovered new exit (range 16) 20565 | -4/Archives | Unable to access archive contents 21121 | -4/Archives | Identified exit to Hub_04(d) 21122 | -4/Archives | Entered Hub_04(d) 21783 | -4/Hub_04(d) | Discovered new exit (range 4) 21801 | -4/Hub_04(d) | Identified exit to Research 22035 | -4/Hub_04(d) | Discovered exit to Research (range 5) 22132 | -4/Hub_04(d) | Network Hub disabled 22132 | -4/Hub_04(d) | Network Hub disabled 22133 | -4/Hub_04(d) | Entered Research 22133 | -3/Research | Evolved 2 slots: Utility x2 22164 | -3/Research | Destroyed 8 combat bots 22266 | -3/Research | Identified exit to Testing 22459 | -3/Research | Build established: Wizard-Mutant 22631 | -3/Research | Repaired Adv. Cloaking Device? 22692 | -3/Research | Fabricated Exp. Sensor Array? 22758 | -3/Research | Fabricated Exp. Utility Shielding? 22760 | -3/Research | Destroyed 7 combat bots 22805 | -3/Research | System corruption reached 10% 22824 | -3/Research | Fabricated Exp. Utility Shielding (x1) 22853 | -3/Research | Central database locked down 22880 | -3/Research | Entered Testing 22991 | -3/Testing | Repaired Exp. Utility Shielding 23050 | -3/Testing | Repaired Lance? 23257 | -3/Testing | Garrison activated, responded to threat 23267 | -3/Testing | Identified exit to Research 23375 | -3/Testing | Core integrity fell below 50% 23390 | -3/Testing | Fabricated Imp. Fusion Compressor? 23429 | -3/Testing | Fabricated Lrn. Terrain Scanner? 23448 | -3/Testing | Repaired Lance 23509 | -3/Testing | Spotted Striker 23509 | -3/Testing | Spotted Striker 23514 | -3/Testing | Central database locked down 23559 | -3/Testing | Scanned by Researcher 23562 | -3/Testing | Self-destructed Last Messages --------------- 23547_ Destroyed Lgt. Antimatter Reactor. 23547_ Destroyed Xenon Bombardment Thruster. 23547_ S-43 Plague destroyed. 23551_ The unstable cave ceiling collapses. 23552_ Triggered Blade Trap. 23552_ Massive razor-sharp blades shoot up from within the floor. 23552_ Exp. Sensor Array severed. 23552_ Q-thruster severed. 23552_ Mni. Smartbomb Launcher severed. 23554_ Acquired Exp. Sensor Array. 23556_ Discarded Asb. Combat Suite. 23558_ Penetrated by Slug. 23559_ C-55 Analyst calls for reinforcements. 23559_ ALERT: Hostile activity reported, dispatching reinforcements to area. 23559_ Held in stasis. 23559_ C-55 Analyst is analyzing... 23559_ ALERT: Encountered unknown unique technology, formulating response. 23560_ Identified Adv. Remote Shield. 23561_ 2IMW TKLVX5#BM